bitfinex/quotes_ETHUSD_20251130
["timestamp","ask_amount","ask_price","bid_price","bid_amount"]
[1764470208337,0.9894,3006.3,3006.2,0.72559411]
[1764470209158,0.9894,3006.3,3006.2,4.05205276]
[1764470209337,0.9894,3006.3,3006.0,3.5366458]
[1764470209541,0.4926,3006.1,3006.0,0.21]
[1764470209860,0.4926,3006.1,3005.7,3.53694347]
[1764470210038,0.4968,3006.0,3005.8,0.72559411]
[1764470210235,0.4926,3005.9,3005.8,0.72559411]
[1764470210662,0.9894,3005.9,3005.8,0.72559411]
[1764470211162,0.4968,3006.3,3005.9,3.32679064]
[1764470211532,0.4926,3006.0,3005.9,4.05238475]
[1764470211732,0.4926,3006.0,3005.9,3.32679064]
[1764470211953,0.9894,3006.0,3005.9,3.32679064]
[1764470212153,0.9894,3006.0,3005.8,3.32787081]
[1764470212366,0.461,3005.9,3005.8,4.05346492]
[1764470212543,0.9605,3005.9,3005.8,4.05346492]
[1764470214470,0.4995,3005.9,3005.8,4.05346492]
[1764470214677,0.9605,3005.9,3005.8,4.05346492]
[1764470215879,0.4995,3005.9,3005.8,4.05346492]
[1764470216066,0.4995,3005.9,3005.8,3.32787081]
[1764470216247,0.4995,3005.9,3005.8,0.001]
[1764470216248,0.9605,3005.9,3005.8,0.001]
[1764470216749,0.9605,3005.9,3005.8,3.32790132]
[1764470218054,0.9605,3005.9,3005.8,0.001]
[1764470220500,0.4995,3005.6,3003.3,2.387967]
[1764470220651,1.1542,3005.5,3004.2,3.22429795]
[1764470220963,1.1542,3005.5,3004.1,0.0847]
[1764470220964,0.6547,3005.8,3004.8,3.32419006]
[1764470221167,0.461,3005.7,3004.9,0.96887308]
[1764470221367,0.461,3005.7,3005.0,0.405504]
[1764470222276,0.4995,3005.1,3004.9,0.21]
[1764470222479,0.4995,3005.1,3005.0,3.32778702]
[1764470223281,0.461,3005.3,3005.0,3.32778702]
[1764470229489,0.461,3005.7,3005.0,6.65557404]
[1764470229668,0.461,3005.7,3005.1,0.03327676]
[1764470230061,0.002,3005.5,3005.2,3.32756555]
[1764470230591,0.4995,3005.3,3005.1,3.32763069]
[1764470230781,0.461,3005.4,3005.1,3.32763069]
[1764470230982,0.4995,3005.2,3005.1,3.32763069]
[1764470231367,0.9605,3005.2,3005.1,3.32763069]
[1764470232199,0.4995,3005.2,3005.0,6.65657155]
[1764470233096,0.9605,3005.2,3005.0,6.65657155]
[1764470234688,0.9605,3005.2,3005.0,0.001]
[1764470235495,0.9605,3005.1,3005.0,0.001]
[1764470237401,0.463,3005.5,3005.0,0.2278]
[1764470237777,0.463,3005.5,3005.0,0.001]
[1764470237978,0.4995,3005.1,3005.0,0.001]
[1764470239401,0.9605,3005.1,3005.0,0.001]
[1764470243977,1.38929636,3005.1,3005.0,0.001]
[1764470245304,1.1705,3005.1,3005.0,0.001]
[1764470245509,4.49817628,3005.1,3005.0,0.001]
[1764470246376,1.1705,3005.1,3005.0,0.001]
[1764470246977,4.49817628,3005.1,3005.0,0.001]
[1764470248505,5.22377039,3005.1,3005.0,0.001]
[1764470248706,3.22429795,3004.8,3004.6,0.001]
[1764470248907,0.8153,3004.7,3004.6,0.001]
[1764470249202,1.2707,3004.7,3004.6,0.001]
[1764470250409,4.59881927,3004.7,3004.6,0.001]
[1764470253522,8.54871133,3004.7,3004.6,0.001]
[1764470253821,9.73638332,3004.7,3004.6,0.001]
[1764470255325,1.13109811,3004.6,3004.3,0.001]
[1764470255527,4.43769206,3004.4,3004.3,0.001]
[1764470256110,4.89309206,3004.4,3004.3,0.001]
[1764470256279,8.75140327,3004.4,3004.3,0.001]
[1764470256680,8.76289711,3004.4,3004.3,0.001]
[1764470261222,11.9986889,3004.4,3004.3,0.001]
[1764470261423,1.13109811,3004.3,3002.7,0.0627]
[1764470261633,3.23579179,3003.4,3002.7,0.0627]
[1764470261857,3.23579179,3003.2,3002.7,0.0627]
[1764470262358,0.4554,3003.1,3002.7,0.0627]
[1764470262861,0.4554,3003.1,3002.4,3.55743329]
[1764470263164,0.4554,3003.1,3002.1,0.73559411]
[1764470263165,0.4878,3002.5,3002.1,0.73559411]
[1764470263330,7.11525508,3003.1,3002.1,0.01]
[1764470263331,0.211,3002.6,3002.1,0.01]
[1764470263528,0.211,3002.5,3002.1,0.01]
[1764470263857,0.211,3002.7,3002.1,0.01]
[1764470264158,0.211,3002.7,3002.1,3.34096168]
[1764470264733,0.6664,3002.7,3002.6,0.001]
[1764470264963,0.71152551,3003.0,3002.6,0.2278]
[1764470265133,0.211,3002.7,3002.6,0.001]
[1764470265350,0.72559411,3003.1,3002.6,0.001]
[1764470265351,0.4554,3003.2,3002.6,0.001]
[1764470265537,0.211,3003.0,3002.6,0.2278]
[1764470267258,3.54100971,3003.0,3002.6,0.2278]
[1764470267858,0.211,3003.0,3002.6,0.2278]
[1764470268167,0.61063105,3003.0,3002.6,0.001]
[1764470268360,0.4554,3002.9,3002.6,0.001]
[1764470268564,1.06603105,3003.0,3002.6,0.001]
[1764470268938,4.39604881,3003.0,3002.6,0.001]
[1764470269272,0.211,3003.0,3002.6,0.001]
[1764470269476,0.211,3003.0,3002.6,0.2278]
[1764470269641,0.211,3003.0,3002.6,0.001]
[1764470270174,0.211,3003.2,3002.9,0.2268]
[1764470270742,3.78450812,3003.9,3003.1,0.2895]
[1764470271074,0.72559411,3003.7,3003.1,0.2895]
[1764470271265,4.05485843,3003.7,3003.1,0.2895]
[1764470272465,4.51665843,3003.7,3003.1,0.2895]
[1764470273202,1.12924666,3003.7,3003.1,3.84618401]
[1764470273494,3.32904206,3003.9,3003.2,0.2268]
[1764470273697,0.211,3003.8,3003.2,0.2268]
[1764470273887,0.6728,3003.8,3003.1,3.39258401]
[1764470274083,3.23579179,3003.7,3003.1,0.0627]
[1764470274286,0.477,3003.2,3002.6,0.66723193]
[1764470274485,3.71279179,3003.1,3002.6,0.001]
[1764470274889,0.83307918,3003.0,3002.6,0.001]
[1764470275200,0.4618,3003.0,3002.6,0.001]
[1764470275390,3.90859179,3003.3,3002.9,0.2268]
[1764470275586,7.23830069,3003.3,3002.9,0.2268]
[1764470275790,0.6728,3003.3,3002.9,0.2268]
[1764470276006,0.4618,3003.2,3002.9,0.2268]
[1764470278074,3.44679179,3003.3,3002.9,0.2268]
[1764470278075,0.211,3003.3,3002.9,0.2268]
[1764470278906,4.00247787,3003.3,3002.9,0.2268]
[1764470279203,0.4618,3003.2,3002.9,0.2268]
[1764470280506,0.211,3003.3,3002.9,3.55687657]
[1764470280804,0.211,3003.4,3003.2,0.2268]
[1764470281005,3.79085709,3003.9,3003.2,0.2268]
[1764470281204,0.211,3003.6,3003.3,0.2268]
[1764470282174,0.6728,3003.6,3003.3,0.2268]
[1764470282402,0.211,3003.6,3003.3,0.2268]
[1764470282701,0.477,3003.4,3003.1,0.0627]
[1764470283474,3.54036014,3003.6,3003.3,0.2268]
[1764470283706,4.34668408,3003.6,3003.3,0.2268]
[1764470283900,4.80848408,3003.6,3003.1,0.0627]
[1764470284085,4.34668408,3003.6,3003.1,0.0627]
[1764470284291,0.4618,3003.5,3003.1,0.0627]
[1764470284789,0.4618,3003.5,3003.1,3.39258385]
[1764470284983,0.4618,3003.5,3003.1,0.0627]
[1764470285504,4.34666832,3003.6,3003.4,0.2268]
[1764470285505,1.01732394,3003.6,3003.4,0.2268]
[1764470285706,0.211,3003.6,3003.4,0.2268]
[1764470286906,0.211,3003.8,3003.5,0.2268]
[1764470287108,0.211,3003.8,3003.7,0.2268]
[1764470288115,0.211,3003.8,3003.4,0.2268]
[1764470288616,3.71279179,3003.5,3003.1,0.0627]
[1764470288817,0.477,3003.5,3003.1,0.0627]
[1764470289125,0.477,3003.5,3003.1,3.39257109]
[1764470290624,3.96671808,3003.8,3003.4,0.2268]
[1764470290795,0.211,3003.7,3003.4,0.2268]
[1764470291198,0.211,3003.7,3003.6,0.2268]
[1764470291399,0.72559411,3004.2,3003.6,0.2268]
[1764470291718,0.6728,3004.1,3003.6,0.2268]
[1764470292098,0.4618,3004.0,3003.6,0.2268]
[1764470292710,3.53982532,3004.1,3003.6,0.2268]
[1764470293127,4.00162532,3004.1,3003.6,0.2268]
[1764470293308,6.86865064,3004.1,3003.6,0.2268]
[1764470293507,0.4618,3004.0,3003.6,0.2268]
[1764470294831,0.477,3003.7,3003.2,3.32978156]
[1764470295231,0.477,3003.3,3002.6,0.001]
[1764470295440,0.477,3003.2,3002.7,3.33027055]
[1764470295813,0.9388,3003.2,3002.6,3.33141805]
[1764470296138,0.4618,3003.2,3002.6,3.33140947]
[1764470296308,0.477,3003.0,3002.6,3.33140947]
[1764470296506,0.477,3003.0,3002.6,0.001]
[1764470297441,0.9388,3003.0,3002.6,0.001]
[1764470298115,0.477,3003.0,3002.6,0.001]
[1764470298415,0.211,3003.2,3002.6,0.001]
[1764470298615,0.6728,3003.2,3002.6,0.001]
[1764470298836,4.00258622,3003.2,3002.6,0.001]
[1764470299022,0.4618,3003.1,3002.6,0.001]
[1764470299415,0.477,3003.0,3002.6,0.001]
[1764470299929,1.1498,3003.0,3002.6,0.001]
[1764470302658,8.44118923,3003.0,3002.6,0.001]
[1764470303452,4.99439744,3003.0,3002.6,0.001]
[1764470303749,6.16639576,3003.0,3002.6,0.001]
[1764470303943,9.40218755,3003.0,3002.6,0.001]
[1764470304530,6.16639576,3003.0,3002.6,0.001]
[1764470304751,4.73570165,3003.0,3002.6,0.001]
[1764470304955,4.94670165,3003.0,3002.6,0.001]
[1764470305750,1.61669832,3003.0,3002.6,0.001]
[1764470306052,0.688,3003.0,3002.6,0.001]
[1764470306955,0.211,3003.0,3002.9,0.2278]
[1764470307657,0.211,3003.0,3002.9,0.001]
[1764470307967,4.52860333,3003.0,3002.9,0.001]
[1764470312943,4.86453766,3003.0,3002.9,0.001]
[1764470313147,5.67162563,3003.0,3002.9,0.001]
[1764470314456,6.73315407,3003.0,3002.9,0.001]
[1764470314651,7.05914435,3003.0,3002.9,0.001]
[1764470316950,6.84814435,3003.0,3002.9,0.001]
[1764470317145,6.95995407,3003.0,3002.9,0.001]
[1764470317477,7.05914435,3003.0,3002.9,0.001]
[1764470318779,10.2982161,3003.0,3002.9,0.001]
[1764470322278,1.16071872,3002.6,3002.5,0.001]
[1764470322481,0.4935,3002.6,3002.5,0.001]
[1764470322686,5.49920019,3002.6,3002.5,0.001]
[1764470322849,5.63268636,3002.6,3002.5,0.001]
[1764470323573,8.9631333,3002.6,3002.5,0.001]
[1764470323778,10.20239917,3002.6,3002.5,0.001]
[1764470324277,9.99139917,3002.6,3002.5,0.001]
[1764470324451,10.068913,3002.6,3002.5,0.001]
[1764470326291,10.20239427,3002.6,3002.5,0.001]
[1764470327270,10.30158455,3002.6,3002.5,0.001]
[1764470329495,10.16810328,3002.6,3002.5,0.001]
[1764470333582,10.068913,3002.6,3002.5,0.001]
[1764470334091,10.16810328,3002.6,3002.5,0.001]
[1764470335100,16.52810328,3002.6,3002.5,0.001]
[1764470336713,14.89437867,3002.6,3002.5,0.001]
[1764470336900,15.10537867,3002.6,3002.5,0.001]
[1764470337110,16.05377867,3002.6,3002.5,0.001]
[1764470337417,16.389713,3002.6,3002.5,0.001]
[1764470337617,14.37978456,3002.6,3002.5,0.001]
[1764470338123,9.90144694,3002.6,3002.5,0.2278]
[1764470338706,9.90344694,3002.6,3002.5,0.2278]
[1764470340688,10.71788127,3002.6,3002.5,0.001]
[1764470340997,9.90344694,3002.6,3002.5,0.2278]
[1764470341206,9.69244694,3002.6,3002.5,0.2278]
[1764470341405,0.002,3002.6,3002.5,0.4546]
[1764470342818,3.3288948,3004.0,3002.6,0.405504]
[1764470343015,0.211,3003.9,3003.0,0.2268]
[1764470343215,0.211,3003.8,3003.1,0.2895]
[1764470343622,0.211,3003.8,3003.2,0.2268]
[1764470346998,3.32922728,3003.7,3003.2,0.2268]
[1764470347600,0.80583433,3003.6,3003.1,0.0627]
[1764470348708,0.4785,3003.2,3002.5,0.2278]
[1764470348905,0.211,3003.1,3002.5,0.2278]
[1764470349144,0.211,3003.1,3002.5,3.55833056]
[1764470349318,0.211,3003.1,3003.0,0.2268]
[1764470352507,0.211,3003.1,3003.0,0.4536]
[1764470353119,0.211,3003.1,3003.0,0.2268]
[1764470357538,3.54089244,3003.1,3003.0,0.2268]
[1764470357741,0.211,3003.1,3003.0,0.2268]
[1764470362160,0.211,3003.1,3003.0,0.4536]
[1764470362363,4.05482139,3003.7,3003.0,0.4536]
[1764470362537,0.211,3003.6,3003.4,0.2268]
[1764470363887,0.33593433,3003.6,3003.5,0.2268]
[1764470364091,0.211,3003.6,3003.5,0.2268]
[1764470364658,0.211,3003.6,3003.2,0.2268]
[1764470365978,0.211,3003.6,3003.5,0.2268]
[1764470366891,0.211,3003.6,3003.5,0.4536]
[1764470368498,0.211,3003.6,3003.5,0.2268]
[1764470371870,3.3311582,3003.8,3003.5,0.2268]
[1764470372192,0.211,3003.7,3003.5,0.2268]
[1764470374500,0.211,3003.7,3003.6,0.2268]
[1764470374798,3.33120124,3003.8,3003.6,0.2268]
[1764470375004,0.211,3003.7,3003.1,3.39254283]
[1764470375205,0.211,3003.7,3003.6,0.2268]
[1764470375902,3.54222728,3003.7,3003.6,0.2268]
[1764470377007,0.213,3003.7,3003.3,0.2268]
[1764470378011,3.54224585,3003.7,3003.3,0.2268]
[1764470378231,4.0252411,3003.7,3003.1,3.39254283]
[1764470378613,4.0252411,3003.7,3003.1,3.61934283]
[1764470378826,3.5422411,3003.7,3003.1,3.61934283]
[1764470379439,3.5422411,3003.7,3003.1,0.2895]
[1764470379737,3.23907175,3003.5,3003.1,0.0627]
[1764470379945,3.72207175,3003.5,3003.1,0.0627]
[1764470380511,3.23725659,3003.4,3003.1,0.0627]
[1764470381706,0.211,3003.3,3003.1,0.0627]
[1764470382837,0.211,3003.3,3003.2,0.2268]
[1764470385034,0.54693433,3003.3,3002.9,3.33007213]
[1764470385227,0.211,3003.3,3002.9,4.24559008]
[1764470386116,0.211,3003.3,3003.2,0.2268]
[1764470387648,0.689,3003.3,3002.9,3.33007213]
[1764470387947,0.81393433,3003.2,3002.6,3.73584332]
[1764470388128,0.211,3003.3,3002.9,0.2268]
[1764470388321,0.211,3003.3,3003.1,0.2268]
[1764470388527,0.211,3003.3,3003.2,0.2895]
[1764470391248,0.211,3003.3,3003.2,0.2268]
[1764470392351,0.211,3003.3,3002.9,3.55690926]
[1764470392554,0.211,3003.3,3002.9,4.28737917]
[1764470392718,0.211,3003.3,3002.9,4.06057917]
[1764470393454,0.211,3003.3,3002.9,0.73046991]
[1764470393748,0.211,3003.3,3002.4,4.33119528]
[1764470393749,3.44825659,3003.3,3002.4,1.00057533]
[1764470393953,3.23725659,3002.9,3002.5,0.001]
[1764470394152,3.44825659,3002.9,3002.5,0.001]
[1764470394322,3.91675659,3002.9,3002.5,0.001]
[1764470394518,0.4965,3002.6,3002.5,0.001]
[1764470394724,3.23725659,3002.7,3002.5,0.001]
[1764470395456,0.4685,3002.8,3002.5,0.001]
[1764470398056,0.4965,3002.6,3002.5,0.001]
[1764470400158,0.965,3002.6,3002.5,0.001]
[1764470401064,0.83243433,3002.6,3002.5,0.001]
[1764470401367,1.30093433,3002.6,3002.5,0.001]
[1764470401571,0.965,3002.6,3002.5,0.001]
[1764470401770,5.04869919,3002.6,3002.5,0.001]
[1764470401972,7.53270353,3002.6,3002.5,0.001]
[1764470402173,7.86863786,3002.6,3002.5,0.001]
[1764470402969,7.53270353,3002.6,3002.5,0.001]
[1764470403172,7.86863786,3002.6,3002.5,0.001]
[1764470403355,8.98562657,3002.6,3002.5,0.001]
[1764470403556,9.3215609,3002.6,3002.5,0.001]
[1764470403766,9.42075118,3002.6,3002.5,0.001]
[1764470403966,9.3215609,3002.6,3002.5,0.001]
[1764470407078,10.04715501,3002.6,3002.5,0.001]
[1764470407777,9.71122068,3002.6,3002.5,0.001]
[1764470407981,10.14634529,3002.6,3002.5,0.001]
[1764470408555,10.04715501,3002.6,3002.5,0.001]
[1764470410593,9.24272068,3002.6,3002.5,0.001]
[1764470410886,9.71122068,3002.6,3002.5,0.001]
[1764470411459,10.04715501,3002.6,3002.5,0.001]
[1764470412900,10.04915501,3002.6,3002.5,0.001]
[1764470413600,9.71322068,3002.6,3002.5,0.001]
[1764470413908,10.04915501,3002.6,3002.5,0.001]
[1764470414410,5.84689842,3002.6,3002.5,0.001]
[1764470414601,5.84689842,3002.6,3002.5,0.2278]
[1764470414602,5.72196409,3002.6,3002.5,0.2278]
[1764470414798,7.02289842,3002.6,3002.5,0.001]
[1764470416120,6.47596409,3002.6,3002.5,0.001]
[1764470416411,10.26015501,3002.6,3002.5,0.001]
[1764470416814,13.4974116,3002.6,3002.5,0.001]
[1764470417225,13.7242116,3002.6,3002.5,0.001]
[1764470417602,10.58614529,3002.6,3002.5,0.001]
[1764470419485,13.82340188,3002.6,3002.5,0.001]
[1764470419693,10.58614529,3002.6,3002.5,0.001]
[1764470420820,13.82340188,3002.6,3002.5,0.001]
[1764470421311,10.58614529,3002.6,3002.5,0.001]
[1764470422192,13.82340188,3002.6,3002.5,0.001]
[1764470422504,10.58614529,3002.6,3002.5,0.001]
[1764470422705,10.48695501,3002.6,3002.5,0.001]
[1764470423315,10.58614529,3002.6,3002.5,0.001]
[1764470426706,9.68152068,3002.6,3002.5,0.001]
[1764470427502,43.37467727,3002.6,3002.1,0.01]
[1764470427737,43.37467727,3002.6,3001.1,0.0794]
[1764470427738,0.33593433,3001.5,3001.1,0.0794]
[1764470427915,3.23725659,3001.2,3001.1,0.0794]
[1764470428302,3.44825659,3001.4,3001.1,0.3062]
[1764470428508,3.44825659,3001.4,3001.3,0.2268]
[1764470428837,0.211,3001.4,3001.3,0.2268]
[1764470429143,0.211,3001.4,3001.3,0.4536]
[1764470430514,0.211,3001.6,3001.3,0.4536]
[1764470430833,0.211,3001.6,3001.5,0.2268]
[1764470431232,6.56850563,3001.9,3001.5,0.4536]
[1764470431407,6.56850563,3001.9,3001.8,0.2268]
[1764470431608,6.77950563,3001.9,3001.8,0.2268]
[1764470432125,0.211,3001.9,3001.8,0.2268]
[1764470432919,3.44825659,3001.9,3001.8,0.2268]
[1764470433141,6.77948014,3001.9,3001.8,0.2268]
[1764470438916,3.44825659,3001.9,3001.8,0.2268]
[1764470439347,3.23725659,3001.9,3001.8,0.2268]
[1764470439552,3.44825659,3001.9,3001.8,0.2268]
[1764470439920,6.77948014,3001.9,3001.8,0.2268]
[1764470440124,3.44825659,3001.9,3001.8,0.2268]
[1764470440429,0.211,3001.9,3001.8,0.2268]
[1764470440633,0.211,3001.9,3001.8,0.4536]
[1764470441149,4.88159598,3001.9,3001.5,0.001]
[1764470441354,4.41615576,3001.6,3001.5,0.001]
[1764470441663,4.96309009,3001.6,3001.5,0.001]
[1764470441964,5.41899009,3001.6,3001.5,0.001]
[1764470442126,6.0709388,3001.6,3001.5,0.001]
[1764470443348,9.4024953,3001.6,3001.5,0.001]
[1764470443853,9.50168558,3001.6,3001.5,0.001]
[1764470444351,9.72848558,3001.6,3001.5,0.001]
[1764470444554,9.6292953,3001.6,3001.5,0.001]
[1764470444756,9.72848558,3001.6,3001.5,0.001]
[1764470446170,9.72848558,3001.6,3001.5,0.001]
[1764470446467,9.6292953,3001.6,3001.5,0.001]
[1764470446674,9.72848558,3001.6,3001.5,0.001]
[1764470447242,10.28183075,3001.6,3001.5,0.001]
[1764470447642,13.36909375,3001.6,3001.5,0.001]
[1764470448043,13.13412175,3001.6,3001.5,0.001]
[1764470451059,13.13412175,3001.6,3001.1,0.001]
[1764470451060,0.72559411,3001.5,3001.1,0.001]
[1764470451259,4.75209009,3001.2,3001.1,0.001]
[1764470451671,5.43479009,3001.2,3001.1,0.001]
[1764470451977,8.76679062,3001.2,3001.1,0.001]
[1764470452175,9.41932607,3001.2,3001.1,0.001]
[1764470452349,17.07554765,3001.2,3001.1,0.001]
[1764470452749,16.64042304,3001.2,3001.1,0.001]
[1764470452949,16.6340122,3001.2,3001.1,0.001]
[1764470453358,16.73320248,3001.2,3001.1,0.001]
[1764470453985,16.4230122,3001.2,3001.1,0.001]
[1764470454173,16.6340122,3001.2,3001.1,0.001]
[1764470454684,15.63117787,3001.2,3001.1,0.001]
[1764470454891,15.16457787,3001.2,3001.1,0.001]
[1764470455185,15.16457787,3001.2,3001.1,0.2278]
[1764470455381,15.5005122,3001.2,3001.1,0.001]
[1764470456160,15.9570122,3001.2,3001.1,0.001]
[1764470458305,16.51430248,3001.2,3001.1,0.001]
[1764470458467,16.4151122,3001.2,3001.1,0.001]
[1764470458792,17.06764765,3001.2,3001.1,0.001]
[1764470458991,18.06926526,3001.2,3001.1,0.001]
[1764470460165,17.51592009,3001.2,3001.1,0.001]
[1764470460702,15.16457787,3001.2,3001.1,0.2278]
[1764470461904,13.86835629,3001.2,3001.1,0.3072]
[1764470462709,13.86835629,3001.2,3001.1,0.534]
[1764470462873,7.50835629,3001.2,3001.1,0.534]
[1764470463275,7.50835629,3001.2,3001.1,0.3072]
[1764470465477,7.29735629,3001.2,3001.1,0.3072]
[1764470465775,7.50835629,3001.2,3001.1,0.3072]
[1764470467180,7.84429062,3001.2,3001.1,0.3072]
[1764470469328,7.29735629,3001.2,3001.1,0.3072]
[1764470469480,3.33200053,3001.2,3001.1,0.3072]
[1764470469826,3.33200053,3001.2,3001.1,0.534]
[1764470469827,3.54300053,3001.2,3001.1,0.534]
[1764470470381,3.54300053,3001.2,3001.1,0.3072]
[1764470471480,9.90336161,3001.4,3001.1,0.534]
[1764470471688,0.211,3001.3,3001.2,0.2268]
[1764470471887,0.211,3001.3,3001.1,0.0804]
[1764470472083,0.54693433,3001.3,3001.1,0.001]
[1764470472296,0.9146,3001.2,3001.1,0.001]
[1764470472703,1.64019411,3001.2,3001.1,0.001]
[1764470473084,1.25053433,3001.2,3001.1,0.001]
[1764470473279,0.9146,3001.2,3001.1,0.001]
[1764470473509,4.85002897,3001.2,3001.1,0.001]
[1764470473714,6.16361028,3001.2,3001.1,0.001]
[1764470477415,6.62171028,3001.2,3001.1,0.001]
[1764470477900,6.28577595,3001.2,3001.1,0.001]
[1764470479042,6.62171028,3001.2,3001.1,0.001]
[1764470479434,6.16361028,3001.2,3001.1,0.001]
[1764470479596,6.72090056,3001.2,3001.1,0.001]
[1764470480540,6.62171028,3001.2,3001.1,0.001]
[1764470480725,5.70711028,3001.2,3001.1,0.2278]
[1764470481436,6.64841028,3001.2,3001.1,0.001]
[1764470486671,5.37117595,3001.2,3001.1,0.2278]
[1764470486854,7.50835629,3001.2,3001.1,0.001]
[1764470487070,7.99225629,3001.2,3001.1,0.001]
[1764470487581,8.32819062,3001.2,3001.1,0.001]
[1764470487961,8.9094809,3001.2,3001.1,0.001]
[1764470488661,9.1362809,3001.2,3001.1,0.001]
[1764470488871,10.48760124,3001.2,3001.1,0.001]
[1764470489449,1.06152844,3001.1,3001.0,0.001]
[1764470489652,3.23976165,3000.3,3000.2,0.2268]
[1764470489899,3.45076165,3000.3,3000.0,0.2268]
[1764470490056,3.45076165,3000.3,3000.2,0.2268]
[1764470491380,6.78376168,3000.3,3000.2,0.2268]
[1764470492059,6.78376168,3000.3,2999.9,0.0627]
[1764470492255,6.78376168,3000.3,2999.9,0.2895]
[1764470492450,3.23976165,3000.0,2999.9,0.0627]
[1764470492876,3.23976165,3000.0,2999.9,0.2895]
[1764470494755,6.57309498,3000.0,2999.9,0.2895]
[1764470495162,10.39032831,3000.0,2998.8,1.72734885]
[1764470495367,3.23976165,2999.7,2999.2,0.2268]
[1764470495793,3.23976165,2999.7,2999.6,0.2268]
[1764470496287,3.23976165,2999.7,2999.6,0.4536]
[1764470496659,3.23976165,2999.7,2999.6,0.2268]
[1764470497181,6.57342835,2999.7,2999.6,0.2268]
[1764470497385,6.57342835,2999.7,2999.6,0.4536]
[1764470498151,6.57342835,2999.7,2999.6,0.2268]
[1764470499587,6.57342835,2999.7,2999.6,0.4536]
[1764470499988,6.57342835,2999.7,2999.6,0.2268]
[1764470501183,6.57342835,2999.7,2999.6,0.4536]
[1764470501489,6.57342835,2999.7,2999.6,0.2268]
[1764470502270,3.23976165,2999.7,2999.6,0.2268]
[1764470502471,0.211,2999.7,2999.6,0.4536]
[1764470506207,3.24496237,2999.9,2999.6,0.4536]
[1764470506503,0.211,2999.8,2999.7,0.4536]
[1764470506703,0.211,2999.8,2999.7,0.2268]
[1764470506888,0.211,2999.8,2999.7,0.4536]
[1764470507201,0.72559411,3000.2,2999.7,0.4536]
[1764470507505,0.72559411,3000.2,2999.8,0.2268]
[1764470507506,3.45596237,3000.1,2999.8,0.2268]
[1764470507876,3.45596237,3000.1,3000.0,0.2268]
[1764470507877,4.18155648,3000.1,3000.0,0.2268]
[1764470508176,3.45596237,3000.1,3000.0,0.2268]
[1764470508785,3.24496237,3000.1,3000.0,0.2268]
[1764470508988,3.24496237,3000.1,3000.0,0.4536]
[1764470508989,3.45596237,3000.1,3000.0,0.4536]
[1764470509403,3.45596237,3000.1,3000.0,0.2268]
[1764470510207,3.24496237,3000.1,3000.0,0.2268]
[1764470510409,3.45596237,3000.1,3000.0,0.2268]
[1764470510902,3.24496237,3000.1,3000.0,0.2268]
[1764470511106,3.24496237,3000.7,3000.0,3.78690568]
[1764470511406,3.24496237,3000.3,3000.1,0.0627]
[1764470511706,0.34319624,3000.7,3000.1,0.0627]
[1764470511707,3.24496237,3000.5,3000.1,0.0627]
[1764470511881,0.211,3000.4,3000.2,0.2268]
[1764470512084,0.211,3000.4,3000.1,0.2895]
[1764470512389,0.211,3000.4,3000.3,0.2268]
[1764470513707,1.1509,3000.4,2999.7,0.2268]
[1764470514002,3.24496237,3000.1,2999.7,0.2268]
[1764470514511,3.24496237,3000.1,3000.0,0.2268]
[1764470514700,3.33300003,3000.3,3000.0,0.2268]
[1764470514701,3.24496237,3000.3,3000.0,0.2268]
[1764470515397,3.5439345,3000.4,3000.0,0.2268]
[1764470515589,6.78889687,3000.4,3000.1,0.0627]
[1764470521513,3.24496237,3000.6,3000.3,0.2268]
[1764470521811,0.211,3000.5,3000.2,0.2268]
[1764470522201,0.72559411,3000.8,3000.4,0.2268]
[1764470522380,0.72559411,3000.8,3000.7,0.2268]
[1764470522585,2.0003092,3000.8,3000.7,0.2268]
[1764470522784,5.33275388,3000.8,3000.7,0.2268]
[1764470523324,3.54344468,3000.8,3000.7,0.2268]
[1764470525523,3.33244468,3000.8,3000.7,0.2268]
[1764470525819,3.54344468,3000.8,3000.7,0.2268]
[1764470528423,3.54344468,3000.8,3000.4,0.2268]
[1764470528991,3.24496237,3000.9,3000.4,0.2268]
[1764470529198,0.211,3000.8,3000.7,0.2268]
[1764470530226,3.54344468,3000.8,3000.7,0.2268]
[1764470530830,3.33244468,3000.8,3000.7,0.2268]
[1764470531025,3.54344468,3000.8,3000.4,0.2268]
[1764470533522,3.54344468,3000.8,3000.7,0.2268]
[1764470534856,3.33244468,3000.8,3000.7,0.2268]
[1764470535010,0.211,3000.8,3000.7,0.2268]
[1764470536708,3.24496237,3000.9,3000.7,0.2268]
[1764470536955,3.33425854,3001.0,3000.8,0.2268]
[1764470537247,3.54333363,3000.9,3000.8,0.2268]
[1764470537609,6.577296,3000.9,3000.4,0.26012888]
[1764470537817,0.211,3000.8,3000.4,0.61943645]
[1764470538807,0.211,3000.8,3000.7,0.2268]
[1764470541556,0.213,3001.0,3000.7,0.2268]
[1764470541856,0.213,3001.0,3000.9,0.2268]
[1764470542211,0.213,3001.0,3000.5,3.59288631]
[1764470542512,0.213,3001.0,3000.6,0.2268]
[1764470544742,0.213,3001.0,3000.7,0.03332555]
[1764470545341,0.21,3000.9,3000.7,0.03332555]
[1764470545742,0.21,3000.9,3000.8,0.2268]
[1764470546244,0.002,3001.0,3000.8,0.2268]
[1764470546537,0.002,3001.0,3000.9,0.2268]
[1764470546743,0.212,3001.0,3000.9,0.2268]
[1764470547121,0.002,3001.0,3000.9,0.2268]